[Event "Vojvodina Open 2024-A 2024"]
[Site "Novi Sad"]
[Date "2024.06.24"]
[Round "1.1"]
[White "Ilincic, Aleksa"]
[Black "Safarli, Eltaj"]
[Result "0-1"]
[ECO "B22"]
[WhiteElo "2232"]
[BlackElo "2595"]
[Annotator "TA"]
[PlyCount "170"]
[EventDate "2024.06.03"]
[EventType "swiss"]
[EventCountry "SRB"]
[SourceTitle "playchess.com"]
[Source "ChessBase"]
[SourceQuality "1"]
[TimeControl "40/5400+30:900+30"]

{[%evp 49,170,193,306,298,400,398,402,389,491,496,500,327,307,333,329,329,268,120,103,120,134,123,107,16,25,0,0,0,0,0,0,0,0,0,0,0,0,0,0,0,0,-12,0,0,0,-63,-63,-62,-62,-62,-62,-61,-61,-61,-61,-61,-61,-62,-62,-62,-62,-62,-62,-62,-62,-62,-62,-62,-62,-62,-62,-62,-62,-62,-62,-62,-62,-62,-62,-69,-69,-69,-69,-69,-69,-69,-62,-62,-62,-62,-62,-62,-62,-62,-62,-62,-62,-62,-62,-62,-62,-62,-62,-62,-62,-62,-62,-62,-62,-62,-62,-62,-62,-72,-72,-29990,-29991,-29991,-29980,-29993,-29994,-29994,-29995]} 1. e4 {[%emt 0:00:02]} c5 {[%emt 0:00:05]} 2. c3 {[%emt 0:00:05]} d5 {[%emt 0:00:27]} 3. exd5 {[%emt 0:00:06]} Nf6 {[%emt 0:00:04]} 4. Bb5+ {[%emt 0:01:10]} Nbd7 {[%emt 0:00:32]} 5. Nf3 {[%emt 0:04:14]} a6 {[%emt 0:02:14]} 6. Be2 {[%emt 0:00:42] B22: Sicilian: 2 c3.} Nxd5 {[%emt 0:00:12]} 7. d4 {[%emt 0:00:13]} e6 {[%emt 0:00:20]} 8. O-O {[%emt 0:00:25]} b5 $146 {[%emt 0:00:24]} ({Predecessor:} 8... Qc7 9. c4 N5f6 10. Nc3 Be7 11. Bg5 O-O 12. Bh4 Rd8 13. Bg3 Bd6 14. Bxd6 Qxd6 15. dxc5 Qxc5 16. Qd4 Qxd4 17. Nxd4 Ne5 18. Rfd1 Bd7 19. c5 Rdc8 20. b4 b6 21. Nb3 Be8 22. Rac1 bxc5 23. bxc5 g5 24. Rd4 Kg7 25. h4 h6 26. hxg5 hxg5 27. Na4 Nfd7 28. Rd6 Rc7 29. Rcd1 Nf6 30. Nb6 Raa7 31. a4 Ne4 32. Rd8 Nc3 33. Re1 Bxa4 34. Nxa4 Nxa4 35. Bxa6 Nc6 36. Rc8 Rxc8 37. Bxc8 Ne7 38. Bxe6 {0-1 Mamedov,R (2636)-Yu,Y (2735) Aimchess Rapid Div 3 W 2023 (4.1)}) 9. a4 {[%emt 0:04:51]} b4 {[%emt 0:05:41]} 10. Re1 {[%emt 0:05:15]} Be7 {[%emt 0:13:39]} 11. c4 {[%emt 0:09:16]} N5f6 {[%emt 0:00:14]} 12. d5 {[%emt 0:04:05]} exd5 {[%emt 0:00:21]} 13. cxd5 {[%emt 0:00:17]} Nb6 {[%emt 0:00:18]} 14. Bxa6 {[%emt 0:16:00]} O-O {[%emt 0:00:47]} 15. Bb5 {[%emt 0:07:18]} Nbxd5 {[%emt 0:02:40]} 16. Ne5 {[%emt 0:03:03]} Qc7 {[%emt 0:03:23]} 17. Nd2 {[%emt 0:05:12]} Bb7 {[%emt 0:06:27]} 18. Ndc4 {[%emt 0:00:28]} Rfd8 {[%emt 0:02:30]} 19. Qb3 {[%emt 0:01:37]} Ba6 {[%emt 0:02:49]} 20. Bg5 {[%emt 0:01:56]} h6 {[%emt 0:08:20]} 21. Bh4 {[%emt 0:13:39]} Bf8 {[%emt 0:04:21]} 22. Bg3 {[%emt 0:02:20]} Bxb5 {[%emt 0:01:49]} 23. axb5 {[%emt 0:00:10]} Qb7 {[%emt 0:01:28]} 24. b6 {[%emt 0:02:16]} Ne4 {[%emt 0:08:10]} 25. Bh4 {[%emt 0:04:43]} ({Much less strong is} 25. Rxa8 Rxa8 $18) 25... f6 {[%emt 0:14:08]} (25... g5 {keeps fighting.}) 26. Rad1 $18 {[%emt 0:01:07]} g5 {[%emt 0:02:18]} 27. Rxe4 {[%emt 0:01:27]} fxe5 {[%emt 0:00:03]} 28. Bg3 $1 {[%emt 0:01:38]} Bg7 {[%emt 0:02:59]} 29. h3 {[%emt 0:03:45]} Qf7 {[%emt 0:01:16]} 30. Nxe5 {[%emt 0:01:01]} ({And not} 30. Bxe5 Nxb6 31. Bxg7 Kxg7 $11) 30... Bxe5 {[%emt 0:00:23]} 31. Rxe5 {[%emt 0:00:26]} Nxb6 {[%emt 0:00:19]} 32. Rxd8+ $1 {[%emt 0:01:42]} Rxd8 {[%emt 0:00:02]} 33. Qxf7+ {[%emt 0:00:35]} (33. Qe3 $18 {[%cal Oe5g5] Hoping for Rxg5+!} Nd7 34. Rxg5+ hxg5 35. Qxg5+ Kh7 36. Qxd8) 33... Kxf7 $16 {[%emt 0:00:03]} 34. Rxc5 {[%emt 0:00:12]} Rd1+ {[%emt 0:02:45]} 35. Kh2 {[%emt 0:00:04]} Nd5 {[%emt 0:01:32] [#]} 36. h4 {[%emt 0:04:22]} (36. Rc6 $1 $16) 36... Rd2 $11 {[%emt 0:02:13]} 37. hxg5 {[%emt 0:01:08]} hxg5 {[%emt 0:00:03]} 38. Kh3 {[%emt 0:01:35]} Ke6 $1 {[%emt 0:01:47]} 39. Rc6+ {[%emt 0:00:27]} Kf5 {[%emt 0:01:10]} 40. Rd6 {[%emt 0:00:00]} g4+ {[%emt 0:00:00]} 41. Kh2 {[%emt 0:03:31]} b3 {[%emt 0:01:39]} 42. Rd8 {[%emt 0:01:20]} Ke4 {[%emt 0:01:46]} 43. Re8+ {[%emt 0:00:31]} Kd3 {[%emt 0:00:14]} 44. Be5 {[%emt 0:04:18]} Rxf2 {[%emt 0:00:11]} 45. Rb8 {[%emt 0:00:55]} Ke4 {[%emt 0:04:42]} 46. Kg3 {[%emt 0:01:54]} Re2 {[%emt 0:00:55]} 47. Rxb3 {[%emt 0:03:50]} ({White should play} 47. Bh8 $11) 47... Kxe5 $15 {[%emt 0:00:17]} 48. Kxg4 {[%emt 0:00:12]} Rxg2+ {[%emt 0:00:08]} 49. Kf3 {[%emt 0:00:23]} Rd2 {[%emt 0:00:18]} 50. Rb8 {[%emt 0:00:30]} Rd3+ {[%emt 0:00:05]} 51. Ke2 {[%emt 0:00:13]} Ke4 {[%emt 0:00:40]} 52. Re8+ {[%emt 0:00:16]} Kd4 {[%emt 0:00:04]} 53. Rd8 {[%emt 0:00:11]} Rb3 {[%emt 0:00:11]} 54. Kf2 {[%emt 0:00:19]} Rxb2+ {[%emt 0:01:47]} 55. Kf3 {[%emt 0:00:04]} Rb3+ {[%emt 0:00:04]} 56. Kf2 {[%emt 0:00:12]} Ra3 {[%emt 0:00:53]} 57. Ke2 {[%emt 0:00:26]} Re3+ {[%emt 0:00:05]} 58. Kf2 {[%emt 0:00:10]} Re5 {[%emt 0:00:03]} 59. Kf3 {[%emt 0:00:21]} Rf5+ {[%emt 0:00:40]} 60. Ke2 {[%emt 0:00:12]} Rf6 {[%emt 0:00:05]} 61. Rh8 {[%emt 0:01:17]} Nc3+ {[%emt 0:00:50]} 62. Ke1 {[%emt 0:00:44]} Ne4 {[%emt 0:00:06]} (62... Re6+ $2 63. Kf1 $19) 63. Kd1 {[%emt 0:01:01]} Rf2 {[%emt 0:00:53]} 64. Rd8+ {[%emt 0:00:34]} Ke3 {[%emt 0:00:32]} 65. Kc1 {[%emt 0:00:14]} Rh2 {[%emt 0:00:06]} 66. Re8 {[%emt 0:00:42]} Kd3 {[%emt 0:01:43]} 67. Rd8+ {[%emt 0:00:26]} Kc4 {[%emt 0:00:03]} 68. Rc8+ {[%emt 0:00:29]} Nc5 {[%emt 0:00:03]} 69. Kd1 {[%emt 0:00:14]} Rg2 {[%emt 0:00:42]} 70. Ke1 {[%emt 0:00:21]} Kd4 {[%emt 0:00:09]} 71. Kf1 {[%emt 0:00:19]} Rc2 {[%emt 0:00:04]} 72. Rd8+ {[%emt 0:00:40]} Ke3 {[%emt 0:00:05]} 73. Rc8 {[%emt 0:00:50]} Rf2+ {[%emt 0:00:09]} 74. Kg1 {[%emt 0:00:10]} Rf5 {[%emt 0:00:04]} 75. Ra8 {[%emt 0:01:32]} Nd3 {[%emt 0:00:44]} 76. Re8+ {[%emt 0:00:38]} Kf3 {[%emt 0:00:49]} 77. Kf1 {[%emt 0:00:39]} Rf7 {[%emt 0:01:54]} 78. Ra8 {[%emt 0:01:01]} Re7 {[%emt 0:03:19]} 79. Rf8+ {[%emt 0:01:08]} Nf4 {[%emt 0:00:03]} 80. Ra8 {[%emt 0:00:56]} Re3 {[%emt 0:00:17]} 81. Kg1 {[%emt 0:01:41]} Rd3 {[%emt 0:06:41]} 82. Kh2 $2 {[%emt 0:00:13][%mdl 8192]} (82. Ra1 $17) 82... Rd2+ {[%emt 0:00:17]} 83. Kh1 {[%emt 0:01:18]} Rd7 {[%emt 0:00:44]} 84. Ra3+ {[%emt 0:00:44] [#]} Kf2 $1 {[%emt 0:00:05]} 85. Ra2+ {[%emt 0:00:41]} Ne2 {[%emt 0:00:04]} 0-1

[Event "Vojvodina Open 2024-A 2024"]
[Site "Novi Sad"]
[Date "2024.06.24"]
[Round "1.2"]
[White "Narayanan, Srinath"]
[Black "Leskur, Dejan"]
[Result "1-0"]
[ECO "B06"]
[WhiteElo "2533"]
[BlackElo "2227"]
[Annotator "TA"]
[PlyCount "95"]
[EventDate "2024.06.03"]
[EventType "swiss"]
[EventCountry "SRB"]
[SourceTitle "playchess.com"]
[Source "ChessBase"]
[SourceQuality "1"]
[TimeControl "40/5400+30:900+30"]

{[%evp 9,95,38,51,27,58,26,35,18,53,47,35,24,52,32,36,43,29,-37,42,33,117,40,29,16,18,17,30,26,29,16,20,20,20,0,0,-8,37,0,22,6,18,14,30,7,34,25,42,52,223,197,213,159,122,145,133,132,124,119,156,61,75,0,0,4,206,188,188,201,266,202,217,213,217,217,201,150,275,233,219,219,313,333,321,329,660,650,665,655]} 1. e4 {[%emt 0:00:44]} g6 {[%emt 0:00:07]} 2. d4 {[%emt 0:00:06]} Bg7 {[%emt 0:00:07]} 3. Nc3 {[%emt 0:00:08]} d6 {[%emt 0:00:06]} 4. Be3 {[%emt 0:00:06]} a6 {[%emt 0:00:07]} 5. Qd2 {[%emt 0:01:06]} b5 {[%emt 0:00:16][%cal Bb7b5,Bb5b4][%mdl 32]} 6. h4 {[%emt 0:00:58][%cal Bh2h4,Bh4h5][%mdl 32]} h6 {[%emt 0:00:26]} 7. f4 {[%emt 0:02:38]} Nf6 {[%emt 0:01:06]} 8. e5 {[%emt 0:00:25] White is slightly better.} b4 {[%emt 0:02:28]} 9. Nce2 {[%emt 0:01:01]} (9. exf6 bxc3 10. Qxc3 (10. fxg7 $2 cxd2+ 11. Bxd2 Rg8 $19) 10... Bxf6 $11) 9... Ng4 {[%emt 0:00:53][%cal Oc7c5]} 10. h5 {[%emt 0:01:45]} g5 {[%emt 0:03:23]} 11. fxg5 {[%emt 0:02:13]} dxe5 {[%emt 0:00:06]} 12. gxh6 {[%emt 0:00:37]} Bf6 {[%emt 0:05:10]} 13. O-O-O {[%emt 0:17:50]} (13. dxe5 $11 Bxe5 14. Qxd8+ Kxd8 15. O-O-O+ Ke8 16. Bd4 Bxd4 17. Rxd4) 13... Nxe3 {[%emt 0:18:23]} (13... exd4 $1 $15 14. Bxd4 (14. Nxd4 c5 $17) 14... e5) 14. Qxe3 $14 {[%emt 0:00:08]} exd4 {[%emt 0:00:11]} (14... Qd5 $1 $14) 15. Nxd4 {[%emt 0:01:10] White is more active.} (15. Qe4 $16 Ra7 16. Nxd4) 15... Qd5 {[%emt 0:03:33][%cal Of6g5] White must now prevent ...Bg5!} 16. Qb3 {[%emt 0:07:47]} (16. Kb1 {keeps more tension.} c5 17. Qf3 Qxf3 18. Ndxf3 Rxh6 19. Ne2) 16... Qxb3 {[%emt 0:03:34]} 17. Nxb3 {[%emt 0:01:23][%cal Bd4b3,Bb3c5,Bc5e4][%mdl 32]} a5 {[%emt 0:09:50][%cal Oa5a4]} 18. Nc5 {[%emt 0:00:37]} Rxh6 {[%emt 0:02:53]} 19. Bb5+ {[%emt 0:02:25]} c6 {[%emt 0:00:13]} 20. Be2 {[%emt 0:00:07]} Nd7 {[%emt 0:03:17]} 21. Ne4 {[%emt 0:00:18]} Bh8 {[%emt 0:00:27]} 22. g4 {[%emt 0:01:50]} a4 {[%emt 0:02:55][%cal Ba5a4,Ba4a3][%mdl 32]} 23. Nh3 {[%emt 0:03:28][%cal Bg1h3,Bh3f4,Bf4d3,Bd3e5][%mdl 32]} a3 {[%emt 0:02:42]} (23... b3 $5 24. axb3 axb3 $11) 24. b3 {[%emt 0:00:05]} Nb6 {[%emt 0:00:36]} 25. g5 $36 {[%emt 0:04:02][%mdl 2048] White is more active.} Bb2+ {[%emt 0:02:11]} 26. Kb1 {[%emt 0:00:50]} Rh8 {[%emt 0:04:02]} 27. Nf4 {[%emt 0:00:46]} Bf5 {[%emt 0:04:32] A strong pair of Bishops.} 28. Bf3 {[%emt 0:01:44]} Rc8 $2 {[%emt 0:03:49]} (28... Ra5 $14) 29. Ng3 $18 {[%emt 0:05:39]} Bd7 {[%emt 0:01:13]} 30. Nd3 {[%emt 0:00:10] Dodges Be5} Bc3 {[%emt 0:01:40]} (30... Nd5 $2 31. Bxd5 cxd5 32. Nxb2 (32. Nxb4 Rg8 $14) 32... axb2 33. Rxd5 $18 (33. Kxb2 Rc3 $18)) 31. Ne2 {[%emt 0:03:46] aiming for Nxc3.} Nd5 {[%emt 0:00:34]} 32. Bxd5 {[%emt 0:00:59]} cxd5 {[%emt 0:00:01]} 33. Nxc3 {[%emt 0:00:09]} bxc3 {[%emt 0:00:23] [#]} 34. Ne5 {[%emt 0:05:33] Prevents Bg4} (34. Rdf1 $1 $16) 34... Bf5 $14 {[%emt 0:03:45]} 35. g6 {[%emt 0:07:37]} (35. Rxd5 $2 Be4 36. Rdd1 Bxh1 37. Rxh1 Rc5 $19) ({Better is} 35. h6 $16) 35... fxg6 $11 {[%emt 0:01:57]} 36. hxg6 {[%emt 0:00:03]} Rg8 {[%emt 0:00:49] [#]} (36... Rxh1 $11 37. Rxh1 Kf8) 37. Rdg1 $1 $18 {[%emt 0:05:45] Threatens to win with Rh5.} (37. Rxd5 Be4 (37... Bxg6 $2 38. Nxg6 Rxg6 39. Ra5 $16) 38. Rdd1 Bxh1 39. Rxh1 Rc5 $17) 37... d4 {[%emt 0:06:53]} 38. Rh5 {[%emt 0:01:21]} Be6 {[%emt 0:06:32]} 39. Nd3 {[%emt 0:00:40] Repels Rc5} Rg7 {[%emt 0:04:18]} 40. Nf4 {[%emt 0:00:00]} Rc6 {[%emt 0:00:00]} 41. Ra5 {[%emt 0:05:04]} Bc8 {[%emt 0:02:19]} 42. Rxa3 {[%emt 0:33:27] Strongly threatening Ra8.} Bf5 {[%emt 0:01:44]} (42... e5 $16 {is a better defense.} 43. Re1 Kd8 44. Rxe5 Rf6 45. Rd5+ Ke8 46. Re5+ (46. Rxd4 Rgxg6 47. Re4+ Kd8 $11) 46... Kd8) 43. Ra8+ {[%emt 0:00:00]} Kd7 {[%emt 0:00:13][%cal Rf5g6]} 44. Ra5 {[%emt 0:00:00]} Be4 {[%emt 0:02:30]} (44... e6 {was necessary.} 45. Rd1 Kc8) 45. Re5 {[%emt 0:00:00]} Bf3 {[%emt 0:02:14]} 46. Rg3 {[%emt 0:00:00]} Kd6 $2 {[%emt 0:00:42]} (46... Bh1 47. Rd3 Rd6) 47. Re6+ {[%emt 0:00:00]} Kd7 {[%emt 0:00:01]} 48. Re1 {[%emt 0:00:00] Weighted Error Value: White=0.17 (very precise) /Black=0.39.  Loses game:     	---       	Black=2      Mistake:       	White=4     	Black=5      Inaccurate:     	White=2     	Black=7      OK:         	White=20    	Black=13     Best:        	White=1     	Black=5      Strong:       	White=1     	---} 1-0

[Event "Vojvodina Open 2024-A 2024"]
[Site "Novi Sad"]
[Date "2024.06.24"]
[Round "1.3"]
[White "Pranav K P"]
[Black "Bryakin, Mikhail"]
[Result "0-1"]
[ECO "E14"]
[WhiteElo "2223"]
[BlackElo "2469"]
[Annotator "TA"]
[PlyCount "120"]
[EventDate "2024.06.03"]
[EventType "swiss"]
[EventCountry "SRB"]
[SourceTitle "playchess.com"]
[Source "ChessBase"]
[SourceQuality "1"]
[TimeControl "40/5400+30:900+30"]

{[%evp 10,120,9,-4,0,0,12,8,19,-7,26,33,32,0,21,-17,-26,-43,-33,-20,10,8,8,5,0,9,11,7,0,14,33,31,60,54,62,49,68,-10,0,-10,0,0,0,-34,-8,-29,-22,-62,-38,-102,-110,-118,-122,-116,-127,-355,-351,-381,-362,-390,-383,-390,-386,-388,-381,-387,-359,-413,-406,-431,-374,-533,-533,-618,-619,-956,-809,-1206,-1156,-5583,-5089,-1675,-1483,-1591,-1481,-1232,-1357,-2270,-2061,-29974,-29975,-29981,-29982,-29984,-29983,-29984,-29983,-29987,-29988,-29989,-29990,-29990,-29991,-29992,-29993,-29993,-29993,-29996,-29992,-29995,-29996,-29996,-29996]} 1. d4 {[%emt 0:10:46]} e6 {[%emt 0:00:09]} 2. c4 {[%emt 0:00:06]} b6 {[%emt 0:00:05]} 3. Nc3 {[%emt 0:00:11]} Bb7 {[%emt 0:00:13]} 4. e3 {[%emt 0:01:47]} Nf6 {[%emt 0:00:28]} 5. Nf3 {[%emt 0:00:12]} d5 {[%emt 0:00:23]} 6. Bd3 {[%emt 0:00:49]} dxc4 {[%emt 0:03:04]} 7. Bxc4 {[%emt 0:01:04]} c5 {[%emt 0:00:47]} 8. O-O {[%emt 0:00:32][%cal Oe3e4]} cxd4 {[%emt 0:01:58] The position is equal.} 9. Nxd4 {[%emt 0:02:23]} Bc5 {[%emt 0:08:57]} 10. Nb3 {[%emt 0:10:07]} Be7 {[%emt 0:07:32]} 11. Qe2 {[%emt 0:03:21]} a6 {[%emt 0:02:51]} 12. a4 {[%emt 0:00:34]} Nc6 {[%emt 0:01:46]} 13. f4 {[%emt 0:03:42]} O-O {[%emt 0:03:18]} 14. e4 {[%emt 0:07:42]} Nd4 {[%emt 0:08:20]} 15. Nxd4 {[%emt 0:02:24]} Qxd4+ {[%emt 0:01:34]} 16. Be3 {[%emt 0:00:37]} Qxe3+ {[%emt 0:01:18]} 17. Qxe3 {[%emt 0:00:02]} Bc5 {[%emt 0:00:01] [#]} 18. Qxc5 {[%emt 0:04:02]} bxc5 {[%emt 0:02:08]} 19. e5 {[%emt 0:07:41]} Ng4 {[%emt 0:03:09]} 20. Rfe1 {[%emt 0:06:54] Prevents Ne3} Rfd8 {[%emt 0:01:12][%cal Bf8d8,Bd8d4,Bd4f4][%mdl 32]} 21. h3 {[%emt 0:01:14]} Rd4 {[%emt 0:01:07]} 22. Bf1 {[%emt 0:11:25]} Nh6 {[%emt 0:00:27]} 23. Rad1 {[%emt 0:01:41]} (23. g4 $14) 23... Rxf4 {[%emt 0:03:50]} 24. Rd7 {[%emt 0:00:21]} Rb4 {[%emt 0:00:40]} 25. Red1 {[%emt 0:02:20] [#] White threatens Rd8+ and mate.} g5 {[%emt 0:02:02]} ({Worse is} 25... Rxb2 26. Rd8+ Rxd8 27. Rxd8#) 26. R1d2 {[%emt 0:01:17]} Bc6 {[%emt 0:11:18][%csl LRa4,LRd7]} 27. Rc7 {[%emt 0:01:32]} Bxa4 {[%emt 0:00:33]} 28. Rxc5 {[%emt 0:00:08]} Nf5 $36 {[%emt 0:06:18][%mdl 2048] Black has good play.} 29. Ra5 {[%emt 0:01:25]} ({White should play} 29. Rf2 $1 $15) 29... Bc6 $17 {[%emt 0:00:12]} 30. Rxa6 {[%emt 0:00:53]} Rxa6 {[%emt 0:00:17]} 31. Bxa6 {[%emt 0:00:02]} Nh4 {[%emt 0:00:26]} 32. Bd3 $2 {[%emt 0:05:28] White does not recover from this.} (32. Bf1 $17 {was worth a try.}) 32... Bxg2 $19 {[%emt 0:05:07] White must now prevent ...Nf3+.} 33. Rxg2 {[%emt 0:02:14]} Nxg2 {[%emt 0:00:13]} 34. Kxg2 {[%emt 0:00:03]} Rxb2+ {[%emt 0:00:06]} 35. Ne2 {[%emt 0:00:04]} Rd2 {[%emt 0:00:34]} 36. Bc4 {[%emt 0:01:17]} Rc2 {[%emt 0:00:46]} 37. Bd3 {[%emt 0:01:55]} Rc5 {[%emt 0:00:06]} 38. Kf3 {[%emt 0:02:25]} Rxe5 {[%emt 0:00:07]} 39. Nd4 {[%emt 0:03:12]} Kg7 {[%emt 0:00:36]} 40. Be2 {[%emt 0:00:00]} (40. Bc4 $142) 40... f5 {[%emt 0:00:00]} 41. Bd1 {[%emt 0:05:47]} Kf6 {[%emt 0:02:55] And now ...Rd5 would win.} 42. Bc2 {[%emt 0:02:01]} h5 {[%emt 0:00:31]} 43. Ne2 {[%emt 0:00:31]} Ra5 {[%emt 0:00:38] Threatens to win with ...Ra3+.} 44. h4 {[%emt 0:02:31]} Ra3+ {[%emt 0:01:34]} 45. Kg2 {[%emt 0:00:42]} g4 {[%emt 0:01:08]} 46. Bd1 {[%emt 0:01:37]} Rh3 {[%emt 0:01:12]} 47. Nf4 {[%emt 0:01:04]} Rxh4 {[%emt 0:00:23]} 48. Bc2 {[%emt 0:02:53]} e5 {[%emt 0:00:26]} 49. Ne2 {[%emt 0:00:13]} Rh3 {[%emt 0:00:45] Black mates.} 50. Ng3 {[%emt 0:00:17]} e4 {[%emt 0:01:16]} 51. Ne2 {[%emt 0:00:46]} Ra3 {[%emt 0:00:24]} 52. Bd1 {[%emt 0:00:56]} Kg5 {[%emt 0:00:07]} 53. Kf2 {[%emt 0:00:18]} h4 {[%emt 0:00:06]} 54. Kg2 {[%emt 0:00:08]} h3+ {[%emt 0:00:11]} 55. Kh2 {[%emt 0:00:15]} f4 {[%emt 0:00:09]} 56. Ng1 {[%emt 0:00:07]} Ra2+ {[%emt 0:00:22]} 57. Kh1 {[%emt 0:00:11]} Kh4 {[%emt 0:00:22]} 58. Be2 {[%emt 0:00:09]} h2 {[%emt 0:00:33]} 59. Kxh2 {[%emt 0:00:10]} f3 {[%emt 0:00:06]} 60. Kh1 {[%emt 0:01:04]} fxe2 {[%emt 0:00:10] Weighted Error Value: White=0.79/Black=0.28 (precise) .  Loses game:     	White=1     	---        Mistake:       	White=3     	---        Inaccurate:     	White=6     	Black=3      OK:         	White=13    	Black=15     Best:        	White=2     	Black=3} 0-1

[Event "Vojvodina Open 2024-A 2024"]
[Site "Novi Sad"]
[Date "2024.06.24"]
[Round "1.4"]
[White "Kalinin, Alexander"]
[Black "Masic, Predrag"]
[Result "1-0"]
[ECO "E06"]
[WhiteElo "2459"]
[BlackElo "2176"]
[Annotator "TA"]
[PlyCount "119"]
[EventDate "2024.06.03"]
[EventType "swiss"]
[EventCountry "SRB"]
[SourceTitle "playchess.com"]
[Source "ChessBase"]
[SourceQuality "1"]
[TimeControl "40/5400+30:900+30"]

{[%evp 11,119,8,32,31,21,22,21,-6,27,20,69,57,71,39,100,89,141,80,135,83,69,54,63,37,80,27,65,0,55,15,26,28,27,28,50,50,54,50,63,63,101,69,95,92,93,88,150,144,179,147,185,158,190,152,153,139,154,148,154,147,155,151,142,154,152,145,148,142,154,147,147,138,165,143,147,144,162,140,146,133,136,130,149,133,134,132,126,124,124,117,117,124,124,122,152,151,170,169,151,144,144,144,144,144,196,165,747,661,576,547]} 1. Nf3 {[%emt 0:01:58]} d5 {[%emt 1:31:00]} 2. c4 {[%emt 0:00:13]} e6 {[%emt 0:00:00]} 3. g3 {[%emt 0:00:36]} Nf6 {[%emt 0:00:00]} 4. Bg2 {[%emt 0:00:09]} Be7 {[%emt 0:00:00]} 5. O-O {[%emt 0:00:14]} O-O {[%emt 0:00:00]} 6. d4 {[%emt 0:00:41]} a5 {[%emt 0:00:00]} 7. Nc3 {[%emt 0:03:06]} c6 {[%emt 0:00:00]} 8. b3 {[%emt 0:01:43]} b6 {[%emt 0:00:00]} 9. Ne5 {[%emt 0:00:17] The position is equal.} Bb7 {[%emt 0:00:00]} 10. Bb2 {[%emt 0:03:13]} Na6 {[%emt 0:00:00]} (10... Nbd7 $11) 11. e3 {[%emt 0:00:36]} Nc7 {[%emt 0:00:00]} 12. Rc1 {[%emt 0:05:11]} Rc8 {[%emt 0:00:00]} ({Black should try} 12... b5 $1 $14) 13. Qe2 {[%emt 0:02:18]} Nce8 {[%emt 0:00:00]} (13... Na6 $142) 14. Rfd1 {[%emt 0:03:50]} (14. Na4 $142 $1) 14... Ba6 {[%emt 0:00:00]} (14... Nd7 $142) 15. Qc2 {[%emt 0:03:11]} (15. Na4 $142) 15... b5 $16 {[%emt 0:00:00]} 16. c5 {[%emt 0:03:08]} Nd7 {[%emt 0:00:00]} 17. Ne2 {[%emt 0:07:30] White has more active pieces. The black rooks are passive.} Nef6 {[%emt 0:00:00]} 18. Nf4 {[%emt 0:02:52]} (18. Nd3 $16) 18... Qc7 {[%emt 0:00:00] [#]} 19. b4 {[%emt 0:14:55]} axb4 {[%emt 0:00:00]} ({Better is} 19... Nxe5 $11 20. dxe5 Nd7) 20. Nfd3 {[%emt 0:01:48]} Bb7 {[%emt 0:00:00]} 21. f4 {[%emt 0:03:45]} ({Reject} 21. Nxb4 Nxe5 22. dxe5 Nd7 $15) 21... Ra8 {[%emt 0:00:00]} 22. Nxb4 {[%emt 0:00:37]} Ra4 {[%emt 0:00:00]} 23. a3 {[%emt 0:00:56]} Rd8 {[%emt 0:00:00]} 24. Rf1 {[%emt 0:01:45]} Nf8 {[%emt 0:00:00]} 25. Rf2 {[%emt 0:01:28]} N6d7 {[%emt 0:00:00]} 26. Rcf1 {[%emt 0:01:10]} Nf6 {[%emt 0:00:00]} 27. g4 {[%emt 0:00:57][%cal Bg3g4,Bg4g5][%mdl 32] Black must now prevent f5.} N6d7 {[%emt 0:00:00]} 28. Ned3 {[%emt 0:02:58]} (28. Rf3 {feels hotter.} Rda8 29. e4 dxe4 30. Rh3) 28... Raa8 {[%emt 0:00:39]} (28... Ng6 $142) 29. g5 {[%emt 0:00:31]} Re8 {[%emt 0:04:16]} 30. Qd1 {[%emt 0:00:57]} Rad8 {[%emt 0:01:31]} 31. h4 {[%emt 0:01:10]} f5 {[%emt 0:00:34]} 32. Bc3 {[%emt 0:02:14]} Ra8 {[%emt 0:00:47]} 33. Ra2 {[%emt 0:00:11]} Ra4 {[%emt 0:01:13]} 34. Qe2 {[%emt 0:00:54]} Rea8 {[%emt 0:00:22]} 35. Rfa1 {[%emt 0:00:06]} Qc8 {[%emt 0:02:28]} 36. Qe1 {[%emt 0:00:50]} R4a7 {[%emt 0:01:31]} 37. Bf3 {[%emt 0:00:09]} Qd8 {[%emt 0:01:46]} 38. Bd1 {[%emt 0:00:31]} Qc8 {[%emt 0:00:28]} 39. Qf2 {[%emt 0:04:48]} Bd8 {[%emt 0:00:35]} 40. Be1 {[%emt 0:00:00]} Bc7 {[%emt 0:00:00]} 41. Qc2 {[%emt 0:06:21]} Nb8 {[%emt 0:04:34]} 42. Qb3 {[%emt 0:02:27]} Nfd7 {[%emt 0:04:05]} 43. Nc1 {[%emt 0:04:23][%cal Bd3c1,Bc1e2,Be2c3][%mdl 32]} Na6 {[%emt 0:02:10] [#]} 44. Nbd3 {[%emt 0:00:10]} Nab8 {[%emt 0:00:34]} 45. Ne2 {[%emt 0:00:29]} Qd8 {[%emt 0:02:00]} 46. Nc3 {[%emt 0:00:30]} Ba5 {[%emt 0:01:22]} 47. a4 {[%emt 0:01:59]} Bxc3 {[%emt 0:00:35]} 48. Bxc3 {[%emt 0:00:26]} bxa4 {[%emt 0:00:33] Black is weak on the dark squares} 49. Rxa4 {[%emt 0:00:06]} Rxa4 {[%emt 0:00:19]} 50. Rxa4 {[%emt 0:00:02]} Rxa4 {[%emt 0:00:24]} 51. Qxa4 {[%emt 0:00:03]} Ba6 {[%emt 0:00:36]} 52. Nb4 {[%emt 0:02:08][%csl LRa6,LRc6]} Qc8 {[%emt 0:01:09]} 53. Nxa6 {[%emt 0:02:07]} Qxa6 {[%emt 0:00:58]} 54. Qxa6 {[%emt 0:00:27]} Nxa6 {[%emt 0:00:01][%mdl 4096] Endgame. KBB-KNN} 55. Ba5 {[%emt 0:00:21] Repels Nc7} Kf7 {[%emt 0:01:15]} 56. Be2 {[%emt 0:02:29]} Ndb8 {[%emt 0:01:32]} 57. h5 {[%emt 0:04:13][%cal Bh4h5,Bh5h6][%mdl 32]} Ke7 {[%emt 0:00:09] [#]} (57... h6 $16 {might work better.} 58. Bd8 Ke8 59. gxh6 gxh6) 58. h6 $1 $18 {[%emt 0:00:44]} g6 $2 {[%emt 0:01:29]} (58... gxh6 59. gxh6 Kf7 60. Bh5+ Kg8) 59. Kf2 {[%emt 0:00:29]} Ke8 {[%emt 0:00:53]} 60. Ke1 {[%emt 0:00:13] Weighted Error Value: White=0.14 (very precise) /Black=0.18 (very precise) .  Mistake:       	White=4     	Black=8      Inaccurate:     	White=5     	Black=5      OK:         	White=16    	Black=14     Best:        	---       	Black=2} 1-0